bitfinex/quotes_BTCUSD_20251010
["timestamp","ask_amount","ask_price","bid_price","bid_amount"]
[1760127257973,0.58365671,117070.0,117060.0,0.01715]
[1760127258190,0.84734106,117070.0,117060.0,0.01715]
[1760127258618,0.86074136,117070.0,117060.0,0.01715]
[1760127259473,0.86074136,117070.0,117060.0,0.18800255]
[1760127259687,0.86074136,117070.0,117060.0,0.01715]
[1760127259905,0.86074136,117070.0,117050.0,0.18801584]
[1760127260550,0.92691594,117070.0,117050.0,0.18801584]
[1760127260764,0.92691594,117070.0,117050.0,0.22639584]
[1760127260978,0.62507603,117070.0,117060.0,0.17085255]
[1760127261185,1.20074535,117070.0,117060.0,0.17085255]
[1760127262083,1.20074535,117070.0,117050.0,0.21688584]
[1760127262286,1.20074535,117070.0,117050.0,0.25526584]
[1760127262515,1.20074535,117070.0,117060.0,0.17085255]
[1760127263097,1.2007487,117070.0,117060.0,0.17085255]
[1760127264782,0.62507938,117070.0,117060.0,0.17085255]
[1760127264988,1.2007487,117070.0,117060.0,0.17085255]
[1760127265201,1.24746347,117070.0,117060.0,0.17085255]
[1760127266261,1.24746347,117070.0,117050.0,0.18801584]
[1760127266474,0.47259351,117070.0,117060.0,0.17085255]
[1760127266641,1.73858283,117070.0,117060.0,0.17085255]
[1760127267024,1.69250347,117070.0,117060.0,0.17085255]
[1760127267863,1.67535347,117070.0,117060.0,0.17085255]
[1760127268093,1.6753629,117070.0,117060.0,0.17085255]
[1760127269454,1.09969358,117070.0,117060.0,0.17085255]
[1760127269714,1.0997098,117070.0,117060.0,0.17085255]
[1760127269941,1.0997098,117070.0,117050.0,0.19973584]
[1760127270222,1.14578916,117070.0,117050.0,0.17086584]
[1760127270442,1.0997098,117070.0,117060.0,0.17085255]
[1760127271127,1.67537912,117070.0,117060.0,0.17085255]
[1760127271352,1.72145848,117070.0,117060.0,0.17085255]
[1760127271600,1.0997098,117070.0,117060.0,0.17085255]
[1760127272062,0.6545898,117070.0,117060.0,0.17085255]
[1760127272288,1.0996698,117070.0,117060.0,0.17085255]
[1760127272720,1.08365248,117070.0,117060.0,0.17085255]
[1760127272931,1.67534008,117070.0,117060.0,0.17085255]
[1760127273168,1.31926008,117070.0,117060.0,0.17085255]
[1760127273959,0.74359076,117070.0,117060.0,0.17085255]
[1760127274388,0.74355076,117070.0,117060.0,0.21038255]
[1760127274601,0.74355076,117070.0,117060.0,0.23774255]
[1760127274807,0.71284159,117070.0,117060.0,0.23774255]
[1760127275040,0.37868159,117070.0,117060.0,0.29699255]
[1760127275459,0.35944129,117070.0,117060.0,0.29699255]
[1760127275560,0.34342247,117070.0,117060.0,0.29699255]
[1760127276365,0.35943703,117070.0,117060.0,0.29699255]
[1760127276831,0.02527703,117070.0,117060.0,0.29699255]
[1760127277069,0.35943703,117070.0,117060.0,0.29699255]
[1760127278120,0.38249766,117070.0,117060.0,0.29699255]
[1760127278951,0.38249766,117070.0,117060.0,0.17085255]
[1760127279645,0.41320683,117070.0,117060.0,0.21038255]
[1760127280115,0.38249766,117070.0,117060.0,0.17085255]
[1760127280321,0.41320683,117070.0,117060.0,0.17085255]
[1760127280732,0.98887615,117070.0,117040.0,0.20829309]
[1760127280952,0.57566932,117060.0,117040.0,0.17942309]
[1760127281151,0.24512,117050.0,117040.0,0.17942309]
[1760127281355,0.27041303,117050.0,117040.0,0.21895309]
[1760127282209,0.25438247,117050.0,117040.0,0.21895309]
[1760127282864,0.25438247,117050.0,117040.0,0.21995309]
[1760127283305,0.24512,117050.0,117040.0,0.24731309]
[1760127284162,0.24512,117050.0,117040.0,0.24831309]
[1760127284371,0.24512,117050.0,117040.0,0.20878309]
[1760127284617,0.24512,117050.0,117040.0,0.24831309]
[1760127286019,0.7376084,117070.0,117050.0,0.17086351]
[1760127286217,0.33408,117060.0,117050.0,0.17086351]
[1760127286422,0.3765938,117060.0,117040.0,0.20878309]
[1760127286692,1.26763546,117060.0,117040.0,0.002]
[1760127286922,1.26763546,117060.0,117040.0,0.001]
[1760127286923,6.12827921,117050.0,117040.0,0.001]
[1760127287151,6.17079301,117050.0,117040.0,0.001]
[1760127287818,6.17079301,117050.0,117030.0,0.17089592]
[1760127287819,0.34,117040.0,117030.0,0.17089592]
[1760127288034,0.58508,117040.0,117030.0,0.17089592]
[1760127288639,0.584952,117040.0,117030.0,0.17089592]
[1760127288844,0.584952,117040.0,117030.0,0.17089635]
[1760127289034,0.58503802,117040.0,117030.0,0.17089635]
[1760127290082,8.602e-05,117040.0,117030.0,0.29397635]
[1760127290293,0.11852602,117040.0,117030.0,0.29397635]
[1760127290749,8.602e-05,117040.0,117030.0,0.32412825]
[1760127290964,0.24516602,117040.0,117030.0,0.32412825]
[1760127291174,0.24516602,117040.0,117030.0,1.13092746]
[1760127292435,0.24516602,117040.0,117030.0,1.13192746]
[1760127292647,0.24516602,117040.0,117030.0,0.32512825]
[1760127293507,0.24516602,117040.0,117030.0,0.32612825]
[1760127298055,0.24516602,117040.0,117030.0,0.34327825]
[1760127298536,0.24516602,117040.0,117030.0,0.002]
[1760127298769,0.66940847,117040.0,117030.0,0.002]
[1760127299000,0.34008602,117040.0,117030.0,0.002]
[1760127299217,0.67412602,117040.0,117030.0,0.001]
[1760127299365,0.67412602,117040.0,117020.0,0.19823009]
[1760127299565,0.67412602,117040.0,117030.0,0.001]
[1760127300372,0.67412602,117040.0,117020.0,0.19823009]
[1760127300574,0.67412602,117040.0,117020.0,0.23542009]
[1760127300834,0.67412602,117040.0,117020.0,0.23542019]
[1760127301684,0.34008602,117040.0,117020.0,0.23542019]
[1760127301822,0.34008602,117040.0,117030.0,0.17089635]
[1760127302074,0.67412602,117040.0,117030.0,0.17089635]
[1760127302258,0.68752961,117040.0,117020.0,0.02732]
[1760127302468,4.98148,117030.0,117010.0,0.20683183]
[1760127302684,0.245,117020.0,117010.0,0.21666183]
[1760127302907,0.245,117020.0,117010.0,0.24398183]
[1760127303123,0.245,117020.0,117000.0,0.25198156]
[1760127303335,0.089,117010.0,117000.0,0.23544156]
[1760127303555,0.34,117030.0,117010.0,0.17947031]
[1760127303791,0.334,117020.0,117010.0,0.17947031]
[1760127303979,0.334,117020.0,117010.0,0.18047031]
[1760127304191,0.334,117020.0,117010.0,0.001]
[1760127304886,0.334,117020.0,117000.0,0.1709384]
[1760127305351,0.334,117020.0,116990.0,0.20681987]
[1760127305560,0.334,117020.0,117000.0,0.17094]
[1760127306292,4.98148,117020.0,117010.0,0.17092556]
[1760127306504,0.34,117030.0,117010.0,0.17092556]
[1760127306733,0.334,117020.0,117010.0,0.17092556]
[1760127306938,0.334,117020.0,117000.0,0.206807]
[1760127307149,0.334,117020.0,117010.0,0.17092556]
[1760127307762,0.334,117020.0,117000.0,0.206807]
[1760127307983,4.98148,117010.0,116990.0,0.17095413]
[1760127308205,5.67764,117010.0,117000.0,0.20813017]
[1760127308422,0.67404,117010.0,117000.0,0.20813017]
[1760127308859,0.67404,117010.0,117000.0,0.17094017]
[1760127309076,0.67404,117010.0,117000.0,0.20813017]
[1760127309291,0.67408,117010.0,117000.0,0.20813017]
[1760127309722,0.34,117010.0,117000.0,0.20813017]
[1760127309929,0.70893488,117010.0,117000.0,0.20813017]
[1760127310133,0.70893488,117010.0,117000.0,0.20913017]
[1760127310601,0.37489488,117010.0,117000.0,0.20913017]
[1760127310828,0.70897488,117010.0,117000.0,0.20913017]
[1760127311064,0.61993488,117010.0,117000.0,0.20913017]
[1760127311296,0.70897488,117010.0,117000.0,0.20913017]
[1760127311875,0.70897488,117010.0,117000.0,0.17194017]
[1760127312084,0.70897488,117010.0,117000.0,0.23645017]
[1760127312300,0.70897488,117010.0,117000.0,0.19926017]
[1760127312524,0.70897488,117010.0,117000.0,0.23645017]
[1760127312719,0.70897488,117010.0,117000.0,0.06451]
[1760127312932,0.72738587,117010.0,117000.0,0.23545017]
[1760127313125,0.72738587,117010.0,117000.0,0.06451]
[1760127313126,0.72495286,117010.0,117000.0,0.06451]
[1760127313331,0.74336386,117010.0,117000.0,0.17094017]
[1760127314638,0.40928386,117010.0,117000.0,0.17094017]
[1760127314873,0.40928386,117010.0,117000.0,0.23545017]
[1760127315088,0.74336386,117010.0,117000.0,0.23545017]
[1760127315300,0.75135033,117010.0,117000.0,0.23545017]
[1760127315727,0.75135033,117010.0,117000.0,0.19826017]
[1760127315951,0.75131033,117010.0,116990.0,0.25200413]
[1760127316202,0.4442,117000.0,116990.0,0.19827413]
[1760127316416,0.46259994,117000.0,116990.0,0.23546413]
[1760127316632,0.01839994,117000.0,116990.0,0.28919413]
[1760127316834,0.73155157,117010.0,117000.0,0.17094017]
[1760127316835,0.06926698,117010.0,117000.0,0.17094017]
[1760127317050,0.41129305,117010.0,116990.0,1.05880334]
[1760127317267,0.41129305,117010.0,117000.0,0.17094017]
[1760127317503,0.41129305,117010.0,117000.0,0.20813017]
[1760127318387,0.43435368,117010.0,117000.0,0.23545017]
[1760127318595,0.51647997,117010.0,117000.0,0.17094017]
[1760127318808,0.51647997,117010.0,117000.0,0.20813017]
[1760127319041,0.10031368,117010.0,117000.0,1.01492938]
[1760127319254,0.41133305,117010.0,117000.0,1.09597938]
[1760127319682,0.38733482,117010.0,117000.0,1.09597938]
[1760127319894,0.41128251,117010.0,117000.0,1.09597938]
[1760127320752,0.32224251,117010.0,117000.0,1.09597938]
[1760127320964,0.28734763,117010.0,117000.0,1.09597938]
[1760127321448,0.04234763,117010.0,117000.0,1.12613128]
[1760127321662,0.27936507,117010.0,117000.0,1.12613128]
[1760127321867,0.26339994,117010.0,117000.0,1.12613128]
[1760127322497,0.01839994,117010.0,117000.0,1.12613128]
[1760127322710,0.08904,117020.0,117010.0,0.20107746]
[1760127322946,0.37639265,117020.0,117010.0,1.12611667]
[1760127323599,0.28735265,117020.0,117010.0,1.12611667]
[1760127324006,0.04235265,117020.0,117010.0,1.12611667]
[1760127324222,0.144623,117020.0,117010.0,1.54923873]
[1760127324572,0.026383,117020.0,117010.0,1.54923873]
[1760127324780,0.09242063,117040.0,117030.0,0.20104825]
[1760127324989,0.08533502,117040.0,117030.0,1.20920952]
[1760127325188,0.01597502,117040.0,117030.0,1.54920952]
[1760127325412,0.0537698,117060.0,117050.0,0.20101905]
[1760127325650,0.08294063,117060.0,117050.0,1.12605826]
[1760127325863,0.08306971,117060.0,117050.0,1.12605826]
[1760127326270,0.25398971,117060.0,117050.0,1.12605826]
[1760127326470,0.02318971,117060.0,117050.0,1.12605826]
[1760127326712,0.26814971,117060.0,117050.0,1.12605826]
[1760127327122,0.26814971,117060.0,117050.0,1.12705826]
[1760127327692,0.26814971,117060.0,117050.0,1.12805826]
[1760127328534,0.02318971,117060.0,117050.0,1.12805826]
[1760127328748,0.24504908,117060.0,117050.0,1.12805826]
[1760127329390,0.00012908,117060.0,117050.0,1.12805826]
[1760127329592,0.24504908,117060.0,117050.0,1.12805826]
[1760127329801,0.00012908,117060.0,117050.0,1.21118032]
[1760127330018,0.24504908,117060.0,117050.0,1.21118032]
[1760127330228,0.00012908,117060.0,117050.0,1.21118032]
[1760127330442,0.00012908,117060.0,117050.0,1.55118032]
[1760127330864,0.00012908,117060.0,117050.0,1.58005531]
[1760127333593,0.00012908,117060.0,117050.0,1.82493531]
[1760127336071,0.00012908,117060.0,117050.0,1.82489531]
[1760127337535,0.00012908,117060.0,117050.0,1.58005531]
[1760127337740,0.00012908,117060.0,117050.0,1.82489531]
[1760127337952,0.00012908,117060.0,117050.0,1.58005531]
[1760127338177,0.00012908,117060.0,117050.0,1.82489531]
[1760127338841,0.00012908,117060.0,117050.0,0.74438111]
[1760127339076,0.00012908,117060.0,117050.0,1.79598032]
[1760127339291,0.00012908,117060.0,117050.0,1.55118032]
[1760127339504,0.00012908,117060.0,117050.0,1.79598032]
[1760127342473,0.00012908,117060.0,117050.0,0.98918111]
[1760127342698,0.00012908,117060.0,117050.0,1.79598032]
[1760127342920,0.00012908,117060.0,117050.0,1.82592751]
[1760127345598,0.00012908,117060.0,117050.0,2.16996128]
[1760127347060,0.00012908,117060.0,117050.0,1.0190883]
[1760127347270,0.00012908,117060.0,117050.0,2.16992128]
[1760127347898,0.00012908,117060.0,117050.0,1.89521409]
[1760127348122,0.00012908,117060.0,117050.0,1.2896457]
[1760127348337,0.00012908,117060.0,117050.0,1.5343657]
[1760127348549,0.11894063,117090.0,117050.0,1.5343657]
[1760127348757,0.089,117080.0,117070.0,0.17936712]
[1760127348966,0.09696408,117080.0,117070.0,0.24267712]
[1760127349596,0.09696408,117080.0,117070.0,0.87259361]
[1760127349808,0.25268408,117080.0,117070.0,0.87259361]
[1760127350025,0.34168408,117080.0,117070.0,0.87259361]
[1760127350255,0.25268408,117080.0,117070.0,0.87259361]
[1760127352263,0.25268408,117080.0,117070.0,0.29717712]
[1760127352472,0.00796408,117080.0,117070.0,0.29717712]
[1760127352678,0.25268408,117080.0,117070.0,0.32732902]
[1760127353780,0.00796408,117080.0,117070.0,0.90274551]
[1760127357014,0.00796408,117080.0,117070.0,0.90374551]
[1760127357639,0.00796408,117080.0,117070.0,0.93608729]
[1760127358722,0.03867325,117080.0,117070.0,0.93608729]
[1760127360799,0.05710309,117080.0,117070.0,0.93608729]
[1760127361744,0.11918668,117080.0,117070.0,0.26529986]
[1760127361957,0.08847751,117080.0,117070.0,0.26529986]
[1760127362172,0.11920551,117080.0,117070.0,0.32062986]
[1760127362386,0.08847751,117080.0,117070.0,0.92838813]
[1760127362596,0.29567751,117080.0,117070.0,0.92838813]
[1760127362806,0.2643332,117080.0,117070.0,0.92838813]
[1760127363871,0.26435712,117080.0,117070.0,0.92838813]
[1760127364084,0.05715712,117080.0,117070.0,0.92838813]
[1760127364292,0.51739133,117080.0,117070.0,0.92838813]
[1760127364499,0.56347069,117080.0,117070.0,0.92838813]
[1760127365215,0.54743648,117080.0,117070.0,0.92838813]
[1760127365477,0.50135712,117080.0,117070.0,0.92838813]
[1760127365688,0.50135712,117080.0,117070.0,0.89610771]
[1760127366112,0.517391,117080.0,117070.0,0.89610771]
[1760127367676,0.761991,117080.0,117070.0,0.89610771]
[1760127369725,0.761991,117080.0,117070.0,0.32062986]
[1760127370062,0.761991,117080.0,117070.0,0.89610771]
[1760127370396,0.73125172,117080.0,117070.0,0.89610771]
[1760127373930,0.73125172,117080.0,117070.0,0.32062986]
[1760127374159,0.73125172,117080.0,117070.0,0.89610771]
[1760127376374,0.73125172,117080.0,117070.0,0.89510771]
[1760127376375,0.73125237,117080.0,117070.0,0.89510771]
[1760127377055,0.48665237,117080.0,117070.0,0.89510771]
[1760127377272,1e-08,117080.0,117070.0,1.31822977]
[1760127377483,0.12365853,117110.0,117100.0,0.20094609]
[1760127377696,0.04552246,117110.0,117100.0,0.80403394]
[1760127377927,0.27976246,117110.0,117100.0,0.89533394]
[1760127378148,0.26373046,117110.0,117100.0,0.89533394]
[1760127378363,0.00070393,117110.0,117100.0,0.978456]
[1760127379247,0.00070393,117110.0,117100.0,1.01282629]
[1760127379458,0.00070393,117110.0,117100.0,1.35282629]
[1760127379667,0.00070393,117110.0,117100.0,1.92830414]
[1760127380126,0.00070393,117110.0,117100.0,2.17282414]
[1760127380375,1e-08,117110.0,117100.0,2.17282414]
[1760127380836,1e-08,117110.0,117100.0,2.23619277]
[1760127381775,1e-08,117110.0,117100.0,2.23919277]
[1760127382259,0.08916,117150.0,117100.0,2.23919277]
[1760127382260,0.08896,117150.0,117140.0,0.20942456]
[1760127382488,0.08911111,117150.0,117130.0,0.19835615]
[1760127382909,0.08911111,117150.0,117130.0,0.25368615]
[1760127383326,0.24452,117140.0,117130.0,0.28383805]
[1760127383534,0.24452,117140.0,117130.0,0.0937319]
[1760127383766,0.24452,117140.0,117130.0,0.26448234]
[1760127383980,0.24452,117140.0,117130.0,0.31981234]
[1760127385468,0.24452,117140.0,117130.0,0.32081234]
[1760127385680,0.03474094,117150.0,117140.0,0.17073587]
[1760127385920,0.36818094,117150.0,117140.0,0.23431587]
[1760127386130,0.36818094,117150.0,117140.0,0.28964587]
[1760127386274,0.27918094,117150.0,117140.0,0.92701403]
[1760127386488,0.03474094,117150.0,117140.0,0.92701403]
[1760127386752,0.51122837,117170.0,117150.0,0.17072129]
[1760127386931,0.08896,117160.0,117150.0,0.19833129]
[1760127387275,0.08896,117160.0,117150.0,0.28963129]
[1760127388093,0.03441262,117170.0,117150.0,0.28963129]
[1760127388308,0.03441262,117170.0,117160.0,0.19686672]
[1760127388516,0.0002,117180.0,117170.0,0.17049222]
[1760127388734,0.3336,117180.0,117170.0,0.23324222]
[1760127389389,0.00818145,117180.0,117170.0,0.23324222]
[1760127389606,0.37694629,117180.0,117170.0,0.28957215]
[1760127389859,0.37694629,117180.0,117170.0,0.23344215]
[1760127390083,0.37694629,117180.0,117160.0,0.25299604]
[1760127390740,0.37694629,117180.0,117160.0,0.23345663]
[1760127390963,0.37694629,117180.0,117160.0,0.28958663]
[1760127391650,0.37694629,117180.0,117170.0,0.17069215]
[1760127391857,0.37694629,117180.0,117160.0,0.25299663]
[1760127394266,0.41128022,117180.0,117160.0,0.23345663]
[1760127394475,0.41128022,117180.0,117160.0,0.28958663]
[1760127394684,0.37694023,117180.0,117160.0,0.28958663]
[1760127395343,0.37694023,117180.0,117160.0,0.06275]
[1760127395566,0.41349017,117180.0,117160.0,0.03659]
[1760127395788,0.41349017,117180.0,117160.0,0.23345513]
[1760127396278,0.41349017,117180.0,117160.0,0.28958513]
[1760127396498,0.37693655,117180.0,117170.0,0.02616]
[1760127396724,0.37693655,117180.0,117170.0,0.06275]
[1760127397398,0.37681655,117180.0,117170.0,0.23344215]
[1760127397583,0.37681655,117180.0,117170.0,0.06275]
[1760127398303,0.04353655,117180.0,117170.0,0.23344215]
[1760127398759,0.37677655,117180.0,117170.0,0.23344215]
[1760127398986,0.04353655,117180.0,117170.0,0.06275]
[1760127399233,0.04353655,117180.0,117170.0,0.11888]
[1760127399234,0.37677655,117180.0,117170.0,0.11888]
[1760127399492,0.37677655,117180.0,117170.0,0.06275]
[1760127400544,0.37677655,117180.0,117170.0,0.23344215]
[1760127400754,0.37677655,117180.0,117170.0,0.06275]
[1760127401595,0.04353655,117180.0,117160.0,0.2529961]
[1760127401810,0.37677655,117180.0,117160.0,0.2529961]
[1760127402242,0.37677655,117180.0,117150.0,0.78175901]
[1760127402243,0.37677655,117180.0,117150.0,0.20686735]
[1760127402463,0.37677655,117180.0,117160.0,0.06275]
[1760127402679,0.97001647,117180.0,117150.0,0.20686442]
[1760127402894,0.96204476,117180.0,117160.0,0.01712]
[1760127403106,0.3871531,117180.0,117150.0,0.26299442]
[1760127403318,0.49529778,117180.0,117150.0,0.24345442]
[1760127403535,0.49529778,117180.0,117150.0,0.29958442]
[1760127404198,0.3332,117170.0,117160.0,0.19686629]
[1760127404417,0.34116741,117170.0,117160.0,0.23345629]
[1760127404628,0.34116741,117170.0,117160.0,0.28958629]
[1760127404836,0.00796741,117170.0,117160.0,0.23345629]
[1760127405071,0.34116741,117170.0,117160.0,0.23345629]
[1760127405289,0.41784536,117170.0,117150.0,0.02761]
[1760127405503,0.37546019,117170.0,117150.0,0.19833107]
[1760127405930,0.37546019,117170.0,117150.0,0.25446107]
[1760127406349,0.04226019,117170.0,117160.0,0.03659]
[1760127406566,0.37546019,117170.0,117160.0,0.20729672]
[1760127406789,0.37546019,117170.0,117160.0,0.23345672]
[1760127407576,0.37542019,117170.0,117160.0,0.23345672]
[1760127408657,0.39840433,117170.0,117160.0,0.23345672]
[1760127408863,0.37542019,117170.0,117160.0,0.23345672]
[1760127409114,0.39840433,117170.0,117160.0,0.23345672]
[1760127409542,0.30948433,117170.0,117160.0,0.23345672]
[1760127409746,0.39840433,117170.0,117160.0,0.23345672]
[1760127409958,0.04226019,117170.0,117160.0,0.23345672]
[1760127410174,0.02631567,117170.0,117160.0,0.82584069]
[1760127410392,0.35947567,117170.0,117160.0,0.82584069]
[1760127410833,0.35947567,117170.0,117160.0,0.28626672]
[1760127411473,0.08892,117170.0,117160.0,0.28626672]
[1760127411893,0.5625619,117190.0,117160.0,0.29480205]
[1760127412096,0.08892,117180.0,117160.0,0.29480205]
[1760127412302,0.10488412,117180.0,117160.0,0.29480205]
[1760127412718,0.24424,117170.0,117160.0,0.28626672]
[1760127412963,0.26020412,117170.0,117160.0,0.23345672]
[1760127413184,0.26020412,117170.0,117160.0,0.28626672]
[1760127413391,0.01596412,117170.0,117160.0,0.28626672]
[1760127413598,0.34912412,117170.0,117160.0,0.28626672]
[1760127414006,0.34912412,117170.0,117160.0,0.82584069]
[1760127414644,0.34912412,117170.0,117160.0,0.23345672]
[1760127414856,0.34912412,117170.0,117160.0,0.85599259]
[1760127414857,0.26016412,117170.0,117160.0,0.85599259]
[1760127415493,0.34908412,117170.0,117160.0,0.85599259]
[1760127415860,0.01596412,117170.0,117160.0,0.85599259]
[1760127416078,0.34908412,117170.0,117160.0,0.85599259]
[1760127416435,0.26016412,117170.0,117160.0,0.85599259]
[1760127416652,0.34908412,117170.0,117160.0,0.85599259]
[1760127416874,0.01596412,117170.0,117160.0,0.85599259]
[1760127417090,0.34908412,117170.0,117160.0,0.85599259]
[1760127417306,0.34908412,117170.0,117160.0,0.31641862]
[1760127417552,0.34908412,117170.0,117160.0,0.06375]
[1760127417798,0.34908412,117170.0,117160.0,0.23445672]
[1760127418344,0.34908412,117170.0,117160.0,0.29117672]
[1760127420606,0.26012412,117170.0,117160.0,0.86090259]
[1760127420831,0.34904412,117170.0,117160.0,0.32132862]
[1760127421079,0.01599311,117170.0,117160.0,0.32132862]
[1760127421285,0.34907311,117170.0,117160.0,0.32132862]
[1760127421534,0.37972449,117170.0,117160.0,0.32132862]
[1760127422238,0.37915906,117170.0,117160.0,0.32132862]
[1760127423512,0.40560384,117170.0,117160.0,0.32132862]
[1760127425167,0.44026267,117170.0,117160.0,0.001]
[1760127425367,0.96039708,117170.0,117160.0,0.001]
[1760127425598,0.42082311,117170.0,117160.0,0.17170672]
[1760127425909,0.08774311,117170.0,117160.0,0.17170672]
[1760127426093,0.42082311,117170.0,117160.0,0.17170672]
[1760127426243,0.42082311,117170.0,117160.0,0.001]
[1760127427312,0.11849416,117170.0,117160.0,0.20629672]
[1760127427475,0.45157416,117170.0,117160.0,0.23308672]
[1760127427861,0.45153416,117170.0,117160.0,0.23308672]
[1760127428015,0.45153416,117170.0,117160.0,0.17170672]
[1760127428642,0.45153416,117170.0,117160.0,0.001]
[1760127429032,0.45153416,117170.0,117160.0,0.17170672]
[1760127429240,0.40566351,117170.0,117160.0,0.17170672]
[1760127430134,0.40566351,117170.0,117160.0,0.001]
[1760127430340,1.00590307,117170.0,117160.0,0.001]
[1760127430742,0.94523748,117170.0,117160.0,0.001]
[1760127430964,6.88620822,117170.0,117160.0,0.001]
[1760127431139,6.3007636,117170.0,117160.0,0.001]
[1760127431508,4.98148,117150.0,117120.0,0.20609327]
[1760127431729,1.22837397,117140.0,117110.0,0.06619503]
[1760127431906,0.57031943,117130.0,117110.0,0.10932401]
[1760127432117,0.24412,117120.0,117110.0,0.28010315]
[1760127432242,0.26256095,117120.0,117110.0,0.30689315]
[1760127432450,0.2705608,117120.0,117110.0,0.30689315]
[1760127432643,0.2705608,117120.0,117110.0,0.17946923]
[1760127433213,0.01844095,117120.0,117110.0,0.24421113]
[1760127433508,0.35148095,117120.0,117110.0,0.24084923]
[1760127433711,0.35148095,117120.0,117110.0,0.27100113]
[1760127434354,0.01844095,117120.0,117110.0,0.32772113]
[1760127434558,0.35148095,117120.0,117110.0,0.32772113]
[1760127434718,0.35148095,117120.0,117110.0,0.32872113]
[1760127434922,0.38653767,117120.0,117110.0,0.32872113]
[1760127435128,0.05349767,117120.0,117110.0,0.32872113]
[1760127435329,0.24365672,117120.0,117110.0,0.32872113]
[1760127437823,0.36809672,117120.0,117110.0,0.32872113]
[1760127438563,0.36809672,117120.0,117110.0,0.03130301]
[1760127438770,0.36809672,117120.0,117110.0,0.23667261]
[1760127439001,0.36809672,117120.0,117110.0,0.06589301]
[1760127439546,0.36809672,117120.0,117110.0,0.03130301]
[1760127439783,0.40490639,117120.0,117110.0,0.00115111]
[1760127439991,0.76328706,117120.0,117110.0,0.00115111]
[1760127443851,5.74476706,117120.0,117110.0,0.00115111]
[1760127444023,6.55863731,117120.0,117110.0,0.00115111]
[1760127444546,6.8745694,117120.0,117110.0,0.00115111]
[1760127444769,7.20531486,117120.0,117110.0,0.00115111]
[1760127445178,7.25143305,117120.0,117110.0,0.00115111]
[1760127445580,7.72219807,117120.0,117110.0,0.00115111]
[1760127446124,7.7164526,117120.0,117110.0,0.00015111]
[1760127446949,7.72984892,117120.0,117110.0,0.00015111]
[1760127447148,7.68373073,117120.0,117110.0,0.00015111]
[1760127447758,7.42408571,117120.0,117110.0,0.00015111]
[1760127447963,7.95073073,117120.0,117110.0,0.00015111]
[1760127448174,8.10096671,117120.0,117110.0,0.00015111]
[1760127449012,8.10096671,117120.0,117080.0,0.06619503]
[1760127449013,8.10950496,117120.0,117080.0,0.06619503]
[1760127449215,4.98148,117090.0,117080.0,0.06619503]
[1760127449435,0.38205873,117090.0,117080.0,0.06619503]
[1760127449987,0.04893873,117090.0,117070.0,0.17937821]
[1760127450184,0.33312,117080.0,117070.0,0.17937821]
[1760127450386,0.35150067,117080.0,117070.0,0.21677821]
[1760127450599,0.35150067,117080.0,117060.0,0.32907321]
[1760127450805,0.35150067,117080.0,117060.0,0.26287818]
[1760127451111,0.38205873,117080.0,117070.0,0.17083796]
[1760127451306,0.38205873,117080.0,117070.0,0.00050393]
[1760127451929,0.72205873,117080.0,117070.0,0.00050393]
[1760127452105,0.79177017,117080.0,117070.0,0.00050393]
[1760127452335,0.76121211,117080.0,117070.0,0.00050393]
[1760127453375,6.59566041,117080.0,117070.0,0.00050393]
[1760127453713,6.60905984,117080.0,117070.0,0.00050393]
[1760127453918,5.8031573,117080.0,117070.0,0.00050393]
[1760127454118,5.40876132,117080.0,117040.0,0.20661554]
[1760127454340,0.04585006,117060.0,117050.0,0.17941026]
[1760127454541,0.42122507,117060.0,117050.0,0.20826715]
[1760127454954,0.33226507,117060.0,117050.0,0.20826715]
[1760127455179,0.42122507,117060.0,117050.0,0.20826715]
[1760127455583,0.42122507,117060.0,117050.0,0.17086715]
[1760127455872,0.42122507,117060.0,117050.0,0.06407]
[1760127456137,0.42122507,117060.0,117050.0,0.17086715]
[1760127456316,0.28641501,117060.0,117050.0,0.20826715]
[1760127456520,0.04225501,117060.0,117050.0,0.20826715]
[1760127456728,0.4212339,117060.0,117050.0,0.23693715]
[1760127456956,0.42124085,117060.0,117050.0,0.23693715]
[1760127457158,0.37538196,117060.0,117050.0,0.23693715]
[1760127457683,0.37538756,117060.0,117050.0,0.23693715]
[1760127458121,0.4108778,117060.0,117050.0,0.23693715]
[1760127458293,0.47205122,117060.0,117050.0,0.23693715]
[1760127458493,0.47205122,117060.0,117050.0,0.06607]
[1760127458687,0.47205122,117060.0,117050.0,0.23693715]
[1760127459007,0.47209122,117060.0,117050.0,0.23693715]
[1760127460241,0.52447864,117060.0,117050.0,0.14449188]
[1760127460799,0.4632278,117060.0,117050.0,0.14449188]
[1760127461987,0.4632278,117060.0,117050.0,0.68502537]
[1760127462978,0.1300278,117060.0,117050.0,0.72242537]
[1760127463180,0.52447864,117060.0,117050.0,0.74909537]
[1760127463385,0.52451446,117060.0,117050.0,0.74909537]
[1760127463728,0.19131446,117060.0,117050.0,0.80065537]
[1760127464070,0.52451446,117060.0,117050.0,0.7544304]
[1760127464770,0.46326362,117060.0,117050.0,0.7544304]
[1760127464973,0.46326362,117060.0,117050.0,0.7028704]
[1760127465172,0.46326362,117060.0,117050.0,0.16233691]
[1760127465314,0.46326362,117060.0,117050.0,0.7028704]
[1760127465512,0.46326362,117060.0,117050.0,0.77034264]
[1760127465737,0.46326362,117060.0,117050.0,0.84294288]
[1760127465948,0.57686446,117060.0,117040.0,0.17140525]
[1760127466245,0.11624709,117050.0,117040.0,0.60853481]
[1760127466420,0.19289047,117050.0,117040.0,0.60853481]
[1760127466642,0.14692338,117050.0,117040.0,0.00052908]
[1760127467651,0.14692338,117050.0,117040.0,0.60853481]
[1760127468097,0.19369274,117050.0,117040.0,0.00052908]
[1760127469818,0.86693386,117050.0,117040.0,0.00052908]
[1760127470040,5.84841386,117050.0,117040.0,0.00052908]
[1760127470241,5.84841386,117050.0,117020.0,0.78781886]
[1760127470558,0.06305446,117030.0,117020.0,0.78796989]
[1760127470772,0.27934784,117030.0,117020.0,0.17146198]
[1760127470981,0.27934784,117030.0,117020.0,0.77946771]
[1760127471319,0.27934784,117030.0,117020.0,0.00055103]
[1760127471546,0.23333338,117030.0,117020.0,0.00055103]
[1760127471953,5.88417173,117030.0,117020.0,0.00055103]
[1760127472125,6.24025173,117030.0,117020.0,0.00055103]
[1760127473943,5.187166,117030.0,117020.0,0.00055103]
[1760127474156,5.876446,117030.0,117020.0,0.60855676]
[1760127474497,5.187166,117030.0,117020.0,0.17146198]
[1760127474698,0.487606,117030.0,117020.0,0.00055103]
[1760127474956,0.487606,117030.0,117020.0,0.77946771]
[1760127475304,0.843766,117030.0,117020.0,0.81655771]
[1760127475548,0.895006,117030.0,117020.0,0.17146198]
[1760127475745,0.843766,117030.0,117020.0,0.20855198]
[1760127475949,0.843766,117030.0,117020.0,0.77946771]
[1760127476836,0.13773574,117030.0,117020.0,0.23516198]
[1760127477067,0.13773574,117030.0,117020.0,0.19807198]
[1760127477268,0.13773574,117030.0,117020.0,0.60855676]